fUST/lending_fUST_20260420
["ID","MTS","AMOUNT","RATE_DAILY","PERIOD"]
[420858621,1776648642348,-500.0,0.00019173,2]
[420858622,1776648642358,-500.0,0.00019173,2]
[420858623,1776648642368,-500.0,0.00019173,2]
[420858624,1776648642378,-215.46481428,0.00019173,2]
[420858625,1776648642388,-271.32529809,0.00019178,2]
[420858626,1776648642398,-257.502148,0.00019178,2]
[420858627,1776648642408,-500.0,0.00019178,2]
[420858628,1776648642419,-500.0,0.00019178,2]
[420858629,1776648642431,-693.77,0.00019178,2]
[420858630,1776648642440,-500.0,0.00019178,2]
[420858631,1776648642450,-500.0,0.00019178,2]
[420858632,1776648642459,-500.0,0.00019178,2]
[420858633,1776648642470,-1248.91,0.00019178,2]
[420858634,1776648642480,-1260.27,0.00019178,2]
[420858635,1776648642491,-500.0,0.00019178,2]
[420858636,1776648642500,-1486.0,0.00019178,2]
[420858637,1776648642511,-500.0,0.00019178,2]
[420858638,1776648642521,-500.0,0.00019178,2]
[420858639,1776648642532,-1667.98,0.00019178,2]
[420858640,1776648642542,-1589.17,0.00019178,2]
[420858641,1776648642551,-500.0,0.00019178,2]
[420858642,1776648642561,-500.0,0.00019178,2]
[420858643,1776648642570,-500.0,0.00019178,2]
[420858644,1776648642580,-500.0,0.00019178,2]
[420858645,1776648642590,-500.0,0.00019178,2]
[420858646,1776648642600,-1394.53,0.00019178,2]
[420858647,1776648642610,-500.0,0.00019178,2]
[420858648,1776648642620,-500.0,0.00019178,2]
[420858649,1776648642629,-500.0,0.00019178,2]
[420858650,1776648642639,-500.0,0.00019178,2]
[420858651,1776648642648,-500.0,0.00019178,2]
[420858652,1776648642658,-500.0,0.00019178,2]
[420858653,1776648642668,-500.0,0.00019178,2]
[420858654,1776648642678,-526.50972351,0.00019178,2]
[420858655,1776648642687,-500.0,0.00019178,2]
[420858656,1776648642697,-500.0,0.00019178,2]
[420858657,1776648642707,-500.0,0.00019178,2]
[420858658,1776648642716,-1158.51,0.00019178,2]
[420858659,1776648642727,-500.0,0.00019178,2]
[420858660,1776648642737,-500.0,0.00019178,2]
[420858661,1776648642747,-500.0,0.00019178,2]
[420858662,1776648642757,-500.0,0.00019178,2]
[420858663,1776648642766,-1117.7,0.00019178,2]
[420858664,1776648642775,-1980.07,0.00019178,2]
[420858665,1776648642785,-500.0,0.00019178,2]
[420858666,1776648642797,-310.79882208,0.00019178,2]
[420858667,1776648642807,-500.0,0.00019178,2]
[420858668,1776648642816,-500.0,0.00019178,2]
[420858669,1776648642826,-963.78,0.00019178,2]
[420858670,1776648642835,-500.0,0.00019178,2]
[420858671,1776648642846,-664.48,0.00019178,2]
[420858672,1776648642855,-500.0,0.00019178,2]
[420858673,1776648642865,-203.0,0.00019178,2]
[420858674,1776648642875,-500.0,0.00019178,2]
[420858675,1776648642884,-966.94,0.00019178,2]
[420858676,1776648642894,-500.0,0.00019178,2]
[420858677,1776648642905,-500.0,0.00019178,2]
[420858678,1776648642915,-407.52644553,0.00019178,2]
[420858679,1776648642925,-500.0,0.00019178,2]
[420858681,1776648642935,-500.0,0.00019178,2]
[420858683,1776648642945,-500.0,0.00019178,2]
[420858685,1776648642955,-500.0,0.00019178,2]
[420858686,1776648642965,-1280.92,0.00019178,2]
[420858689,1776648642975,-500.0,0.00019178,2]
[420858691,1776648642984,-677.26,0.00019178,2]
[420858693,1776648642995,-500.0,0.00019178,2]
[420858695,1776648643005,-500.0,0.00019178,2]
[420858697,1776648643014,-500.0,0.00019178,2]
[420858699,1776648643024,-1089.87,0.00019178,2]
[420858701,1776648643034,-500.0,0.00019178,2]
[420858702,1776648643044,-500.0,0.00019178,2]
[420858703,1776648643053,-500.0,0.00019178,2]
[420858704,1776648643063,-500.0,0.00019178,2]
[420858705,1776648643072,-585.11001015,0.00019178,2]
[420858706,1776648643082,-500.0,0.00019178,2]
[420858707,1776648643091,-604.35345552,0.00019178,2]
[420858710,1776648643304,-500.0,0.00019178,2]
[420858711,1776648643315,-500.0,0.00019178,2]
[420858712,1776648643325,-594.1651468,0.00019178,2]
[420858713,1776648643334,-500.0,0.00019178,2]
[420858714,1776648643344,-510.79630075,0.00019178,2]
[420858715,1776648643354,-500.0,0.00019178,2]
[420858716,1776648643363,-195.33383466,0.00019178,2]
[420858717,1776648643373,-500.0,0.00019178,2]
[420858718,1776648643382,-500.0,0.00019178,2]
[420858719,1776648643392,-1739.19,0.00019178,2]
[420858720,1776648643401,-695.99,0.00019178,2]
[420858721,1776648643411,-695.99,0.00019178,2]
[420858722,1776648643422,-500.0,0.00019178,2]
[420858723,1776648643431,-500.0,0.00019178,2]
[420858724,1776648643441,-500.0,0.00019178,2]
[420858725,1776648643451,-500.0,0.00019178,2]
[420858726,1776648643460,-543.13,0.00019178,2]
[420858727,1776648643470,-500.0,0.00019178,2]
[420858728,1776648643479,-649.91,0.00019178,2]
[420858729,1776648643489,-1001.01,0.00019178,2]
[420858730,1776648643499,-500.0,0.00019178,2]
[420858731,1776648643508,-500.0,0.00019178,2]
[420858732,1776648643518,-500.0,0.00019178,2]
[420858733,1776648643527,-500.0,0.00019178,2]
[420858734,1776648643537,-500.0,0.00019178,2]
[420858735,1776648643546,-1000.0,0.00019178,2]
[420858736,1776648643556,-500.0,0.00019178,2]
[420858737,1776648643566,-500.0,0.00019178,2]
[420858738,1776648643576,-893.1,0.00019178,2]
[420858739,1776648643586,-500.0,0.00019178,2]
[420858740,1776648643595,-500.0,0.00019178,2]
[420858741,1776648643605,-443.9684593,0.00019178,2]
[420858742,1776648643615,-540.79,0.00019178,2]
[420858743,1776648643625,-500.0,0.00019178,2]
[420858744,1776648643635,-1076.52,0.00019178,2]
[420858745,1776648643644,-708.62,0.00019178,2]
[420858746,1776648643654,-1332.3,0.00019178,2]
[420858747,1776648643664,-500.0,0.00019178,2]
[420858748,1776648643674,-500.0,0.00019178,2]
[420858749,1776648643684,-500.0,0.00019178,2]
[420858750,1776648643693,-500.0,0.00019178,2]
[420858751,1776648643703,-2721.45,0.00019178,2]
[420858752,1776648643713,-712.63,0.00019178,2]
[420858753,1776648643723,-512.48,0.00019178,2]
[420858754,1776648643733,-500.0,0.00019178,2]
[420858755,1776648643743,-500.0,0.00019178,2]
[420858756,1776648643752,-500.0,0.00019178,2]
[420858757,1776648643762,-522.47,0.00019178,2]
[420858758,1776648643771,-523.5862448,0.00019178,2]
[420858759,1776648643781,-1692.57,0.00019178,2]
[420858760,1776648643791,-500.0,0.00019178,2]
[420858761,1776648643800,-600.67,0.00019178,2]
[420858762,1776648643810,-500.0,0.00019178,2]
[420858763,1776648643821,-500.0,0.00019178,2]
[420858764,1776648643830,-500.0,0.00019178,2]
[420858765,1776648643840,-500.0,0.00019178,2]
[420858766,1776648643850,-5429.72,0.00019178,2]
[420858767,1776648643860,-500.0,0.00019178,2]
[420858768,1776648643870,-558.69408106,0.00019178,2]
[420858770,1776648643880,-500.0,0.00019178,2]
[420858771,1776648643889,-967.54,0.00019178,2]
[420858772,1776648643901,-500.0,0.00019178,2]
[420858773,1776648643911,-863.29,0.00019178,2]
[420858774,1776648643922,-500.0,0.00019178,2]
[420858775,1776648643931,-190.51973923,0.00019178,2]
[420858776,1776648643941,-500.0,0.00019178,2]
[420858777,1776648643950,-1223.86,0.00019178,2]
[420858778,1776648643961,-500.0,0.00019178,2]
[420858779,1776648643970,-500.0,0.00019178,2]
[420858780,1776648643979,-616.31301718,0.00019178,2]
[420858781,1776648643988,-500.0,0.00019178,2]
[420858782,1776648643998,-500.0,0.00019178,2]
[420858783,1776648644007,-579.24086788,0.00019178,2]
[420858784,1776648644017,-500.0,0.00019178,2]
[420858785,1776648644028,-500.0,0.00019178,2]
[420858786,1776648644037,-230.79184891,0.00019178,2]
[420858787,1776648644047,-500.0,0.00019178,2]
[420858788,1776648644056,-500.0,0.00019178,2]
[420858789,1776648644066,-500.0,0.00019178,2]
[420858790,1776648644075,-560.52,0.00019178,2]
[420858791,1776648644085,-909.96,0.00019178,2]
[420858792,1776648644095,-500.0,0.00019178,2]
[420858793,1776648644104,-448.63128678,0.00019178,2]
[420858794,1776648644114,-584.27316728,0.00019178,2]
[420858795,1776648644123,-1436.23,0.00019178,2]
[420858796,1776648644132,-500.0,0.00019178,2]
[420858797,1776648644142,-500.0,0.00019178,2]
[420858798,1776648644151,-1002.96,0.00019178,2]
[420858799,1776648644161,-549.04,0.00019178,2]
[420858800,1776648644171,-1121.83,0.00019178,2]
[420858801,1776648644181,-500.0,0.00019178,2]
[420858802,1776648644190,-500.0,0.00019178,2]
[420858803,1776648644200,-500.0,0.00019178,2]
[420858804,1776648644209,-500.0,0.00019178,2]
[420858805,1776648644219,-500.0,0.00019178,2]
[420858806,1776648644229,-2122.41,0.00019178,2]
[420858807,1776648644239,-283.04034221,0.00019178,2]
[420858808,1776648644249,-853.59,0.00019178,2]
[420858809,1776648644259,-946.82,0.00019178,2]
[420858810,1776648644268,-872.35,0.00019178,2]
[420858811,1776648644277,-500.0,0.00019178,2]
[420858812,1776648644286,-500.0,0.00019178,2]
[420858813,1776648644296,-1274.3,0.00019178,2]
[420858814,1776648644305,-500.0,0.00019178,2]
[420858815,1776648644315,-2128.05,0.00019178,2]
[420858816,1776648644326,-500.0,0.00019178,2]
[420858818,1776648644335,-500.0,0.00019178,2]
[420858820,1776648644344,-500.0,0.00019178,2]
[420858821,1776648644353,-500.0,0.00019178,2]
[420858822,1776648644363,-500.0,0.00019178,2]
[420858824,1776648644372,-1302.28,0.00019178,2]
[420858825,1776648644382,-500.0,0.00019178,2]
[420858826,1776648644391,-511.06576985,0.00019178,2]
[420858827,1776648644400,-437.95234603,0.00019178,2]
[420858828,1776648644410,-1506.36,0.00019178,2]
[420858829,1776648644419,-500.0,0.00019178,2]
[420858830,1776648644429,-1883.97,0.00019178,2]
[420858831,1776648644437,-500.0,0.00019178,2]
[420858832,1776648644447,-870.62,0.00019178,2]
[420858833,1776648644456,-2332.89,0.00019178,2]
[420858834,1776648644466,-500.0,0.00019178,2]
[420858836,1776648644478,-500.0,0.00019178,2]
[420858838,1776648644487,-1385.06,0.00019178,2]
[420858840,1776648644497,-560.8152,0.00019178,2]
[420858841,1776648644506,-3792.67,0.00019178,2]
[420858842,1776648644516,-531.42,0.00019178,2]
[420858843,1776648644527,-799.33,0.00019178,2]
[420858844,1776648644537,-500.0,0.00019178,2]
[420858845,1776648644547,-1000.0,0.00019178,2]
[420858846,1776648644556,-613.79,0.00019178,2]
[420858847,1776648644567,-1108.76,0.00019178,2]
[420858848,1776648644575,-500.0,0.00019178,2]
[420858849,1776648644585,-500.0,0.00019178,2]
[420858850,1776648644594,-500.0,0.00019178,2]
[420858851,1776648644604,-500.0,0.00019178,2]
[420858852,1776648644612,-500.0,0.00019178,2]
[420858853,1776648644622,-680.1,0.00019178,2]
[420858854,1776648644632,-806.97,0.00019178,2]
[420858855,1776648644644,-789.92,0.00019178,2]
[420858856,1776648644654,-500.0,0.00019178,2]
[420858857,1776648644665,-206.48486739,0.00019178,2]
[420858858,1776648644675,-500.0,0.00019178,2]
[420858859,1776648644687,-1008.91,0.00019178,2]
[420858860,1776648644697,-500.0,0.00019178,2]
[420858861,1776648644708,-909.56,0.00019178,2]
[420858862,1776648644718,-1409.3,0.00019178,2]
[420858863,1776648644727,-500.0,0.00019178,2]
[420858864,1776648644736,-867.54,0.00019178,2]
[420858865,1776648644745,-560.96,0.00019178,2]
[420858866,1776648644754,-500.0,0.00019178,2]
[420858867,1776648644763,-639.54520038,0.00019178,2]
[420858868,1776648644773,-260.51762452,0.00019178,2]
[420858869,1776648644783,-500.0,0.00019178,2]
[420858870,1776648644792,-3463.56,0.00019178,2]
[420858871,1776648644803,-500.0,0.00019178,2]
[420858872,1776648644813,-1265.14,0.00019178,2]
[420858873,1776648644823,-500.0,0.00019178,2]
[420858874,1776648644833,-500.0,0.00019178,2]
[420858875,1776648644842,-1112.52,0.00019178,2]
[420858876,1776648644852,-500.0,0.00019178,2]
[420858877,1776648644862,-500.0,0.00019178,2]
[420858878,1776648644871,-500.0,0.00019178,2]
[420858879,1776648644881,-576.71287506,0.00019178,2]
[420858880,1776648644891,-6106.34,0.00019178,2]
[420858881,1776648644901,-500.0,0.00019178,2]
[420858882,1776648644911,-500.0,0.00019178,2]
[420858883,1776648644920,-650.03,0.00019178,2]
[420858884,1776648644931,-1112.33,0.00019178,2]
[420858885,1776648644940,-5731.24,0.00019178,2]
[420858886,1776648644950,-500.0,0.00019178,2]
[420858887,1776648644960,-897.66,0.00019178,2]
[420858888,1776648644970,-4108.45,0.00019178,2]
[420858889,1776648644979,-500.0,0.00019178,2]
[420858890,1776648644989,-500.0,0.00019178,2]
[420858891,1776648644998,-1633.34,0.00019178,2]
[420858892,1776648645008,-500.0,0.00019178,2]
[420858893,1776648645017,-500.0,0.00019178,2]
[420858894,1776648645027,-1410.6,0.00019178,2]
[420858895,1776648645037,-3882.31,0.00019178,2]
[420858896,1776648645046,-3819.37,0.00019178,2]
[420858897,1776648645055,-1466.18,0.00019178,2]
[420858898,1776648645066,-698.33,0.00019178,2]
[420858899,1776648645076,-500.0,0.00019178,2]
[420858900,1776648645085,-500.0,0.00019178,2]
[420858901,1776648645095,-500.0,0.00019178,2]
[420858902,1776648645104,-722.83,0.00019178,2]
[420858903,1776648645113,-500.0,0.00019178,2]
[420858904,1776648645123,-500.0,0.00019178,2]
[420858905,1776648645133,-1851.92,0.00019178,2]
[420858906,1776648645142,-1571.15,0.00019178,2]
[420858907,1776648645152,-651.62,0.00019178,2]
[420858908,1776648645162,-316.77804976,0.00019178,2]
[420858909,1776648645171,-500.0,0.00019178,2]
[420858910,1776648645181,-500.0,0.00019178,2]
[420858911,1776648645191,-5888.23,0.00019178,2]
[420858912,1776648645200,-2758.11,0.00019178,2]
[420858913,1776648645209,-424.77684982,0.00019178,2]
[420858914,1776648645219,-556.26475915,0.00019178,2]
[420858915,1776648645228,-559.41,0.00019178,2]
[420858916,1776648645238,-546.20247216,0.00019178,2]
[420858917,1776648645247,-500.0,0.00019178,2]
[420858918,1776648645256,-1213.09,0.00019178,2]
[420858919,1776648645266,-500.0,0.00019178,2]
[420858920,1776648645274,-1763.07,0.00019178,2]
[420858921,1776648645283,-500.0,0.00019178,2]
[420858922,1776648645293,-500.0,0.00019178,2]
[420858923,1776648645302,-15374.0,0.00019178,2]
[420858924,1776648645312,-707.6,0.00019178,2]
[420858925,1776648645321,-500.0,0.00019178,2]
[420858926,1776648645331,-918.59,0.00019178,2]
[420858927,1776648645340,-500.0,0.00019178,2]
[420858928,1776648645350,-1373.4,0.00019178,2]
[420858929,1776648645359,-500.0,0.00019178,2]
[420858930,1776648645369,-500.0,0.00019178,2]
[420858931,1776648645378,-500.0,0.00019178,2]
[420858932,1776648645388,-500.0,0.00019178,2]
[420858933,1776648645397,-23129.27,0.00019178,2]
[420858934,1776648645407,-9918.45,0.00019178,2]
[420858935,1776648645417,-344.02470885,0.00019178,2]
[420858936,1776648645426,-4856.76,0.00019178,2]
[420858937,1776648645435,-653.05,0.00019178,2]
[420858938,1776648645444,-500.0,0.00019178,2]
[420858939,1776648645454,-587.75,0.00019178,2]
[420858940,1776648645463,-500.0,0.00019178,2]
[420858941,1776648645475,-7335.01,0.00019178,2]
[420858942,1776648645484,-570.81,0.00019178,2]
[420858943,1776648645494,-1382.2,0.00019178,2]
[420858944,1776648645503,-17175.46,0.00019178,2]
[420858945,1776648645513,-2423.39,0.00019178,2]
[420858946,1776648645523,-500.0,0.00019178,2]
[420858947,1776648645533,-500.0,0.00019178,2]
[420858948,1776648645542,-975.15,0.00019178,2]
[420858949,1776648645552,-1595.74,0.00019178,2]
[420858950,1776648645562,-785.1414,0.00019178,2]
[420858951,1776648645573,-15435.09,0.00019178,2]
[420858952,1776648645582,-3535.5,0.00019178,2]
[420858953,1776648645591,-4814.36,0.00019178,2]
[420858954,1776648645601,-1548.16,0.00019178,2]
[420858955,1776648645610,-500.0,0.00019178,2]
[420858956,1776648645620,-500.0,0.00019178,2]
[420858957,1776648645629,-500.0,0.00019178,2]
[420858958,1776648645638,-573.83,0.00019178,2]
[420858959,1776648645697,-500.0,0.00019178,2]
[420858960,1776648645707,-903.46,0.00019178,2]
[420858961,1776648645716,-810.86,0.00019178,2]
[420858962,1776648645726,-566.12,0.00019178,2]
[420858963,1776648645735,-500.0,0.00019178,2]
[420858964,1776648645744,-8505.29,0.00019178,2]
[420858965,1776648645753,-500.0,0.00019178,2]
[420858966,1776648645764,-10214.24,0.00019178,2]
[420858967,1776648645774,-3165.2,0.00019178,2]
[420858968,1776648645784,-500.0,0.00019178,2]
[420858969,1776648645793,-500.0,0.00019178,2]
[420858970,1776648645802,-500.0,0.00019178,2]
[420858971,1776648645813,-3546.05,0.00019178,2]
[420858973,1776648645822,-537.76,0.00019178,2]
[420858974,1776648645832,-653.4,0.00019178,2]
[420858975,1776648645841,-500.0,0.00019178,2]
[420858976,1776648645850,-618.24941395,0.00019178,2]
[420858977,1776648645859,-4684.46,0.00019178,2]
[420858978,1776648645869,-516.48961705,0.00019178,2]
[420858979,1776648645878,-500.0,0.00019178,2]
[420858980,1776648645887,-11118.81,0.00019178,2]
[420858981,1776648645896,-1422.72,0.00019178,2]
[420858982,1776648645906,-500.0,0.00019178,2]
[420858983,1776648645915,-500.0,0.00019178,2]
[420858984,1776648645925,-1453.61,0.00019178,2]
[420858985,1776648645935,-500.0,0.00019178,2]
[420858986,1776648645944,-500.0,0.00019178,2]
[420858987,1776648645953,-5363.34,0.00019178,2]
[420858988,1776648645963,-1188.28,0.00019178,2]
[420858989,1776648645972,-200.0,0.00019178,2]
[420858990,1776648645982,-2799.44,0.00019178,2]
[420858991,1776648645992,-500.0,0.00019178,2]
[420858992,1776648646001,-500.0,0.00019178,2]
[420858993,1776648646010,-500.0,0.00019178,2]
[420858994,1776648646019,-1485.61,0.00019178,2]
[420858995,1776648646028,-500.0,0.00019178,2]
[420858996,1776648646038,-3281.06,0.00019178,2]
[420858997,1776648646047,-6664.44,0.00019178,2]
[420858998,1776648646056,-850.67,0.00019178,2]
[420858999,1776648646065,-789.54,0.00019178,2]
[420859000,1776648646074,-1061.08,0.00019178,2]
[420859001,1776648646083,-572.31900454,0.00019178,2]
[420859002,1776648646092,-500.0,0.00019178,2]
[420859003,1776648646101,-14819.57,0.00019178,2]
[420859004,1776648646112,-644.45,0.00019178,2]
[420859005,1776648646121,-500.0,0.00019178,2]
[420859006,1776648646130,-516.19308755,0.00019178,2]
[420859007,1776648646140,-639.53789809,0.00019178,2]
[420859008,1776648646150,-1759.03,0.00019178,2]
[420859009,1776648646159,-923.03,0.00019178,2]
[420859010,1776648646169,-500.0,0.00019178,2]
[420859011,1776648646178,-1719.38,0.00019178,2]
[420859012,1776648646188,-7096.21,0.00019178,2]
[420859013,1776648646197,-2983.58,0.00019178,2]
[420859014,1776648646206,-1313.46,0.00019178,2]
[420859015,1776648646216,-500.0,0.00019178,2]
[420859016,1776648646226,-6042.41,0.00019178,2]
[420859017,1776648646235,-10242.92,0.00019178,2]
[420859018,1776648646245,-923.78,0.00019178,2]
[420859019,1776648646254,-500.0,0.00019178,2]
[420859020,1776648646263,-500.0,0.00019178,2]
[420859021,1776648646272,-500.0,0.00019178,2]
[420859022,1776648646281,-1093.68,0.00019178,2]
[420859023,1776648646290,-500.0,0.00019178,2]
[420859024,1776648646299,-500.0,0.00019178,2]
[420859025,1776648646309,-2223.47,0.00019178,2]
[420859026,1776648646318,-1542.58,0.00019178,2]
[420859027,1776648646328,-1819.22,0.00019178,2]
[420859028,1776648646337,-500.0,0.00019178,2]
[420859029,1776648646347,-2075.64,0.00019178,2]
[420859030,1776648646356,-900.24,0.00019178,2]
[420859031,1776648646365,-500.0,0.00019178,2]
[420859032,1776648646375,-5430.92,0.00019178,2]
[420859033,1776648646384,-528.16158184,0.00019178,2]
[420859034,1776648646393,-500.0,0.00019178,2]
[420859036,1776648646402,-500.0,0.00019178,2]
[420859038,1776648646411,-1697.95,0.00019178,2]
[420859040,1776648646420,-1084.65,0.00019178,2]
[420859042,1776648646431,-500.0,0.00019178,2]
[420859044,1776648646440,-2513.14,0.00019178,2]
[420859046,1776648646449,-500.0,0.00019178,2]
[420859048,1776648646460,-15802.48,0.00019178,2]
[420859050,1776648646469,-500.0,0.00019178,2]
[420859052,1776648646479,-500.0,0.00019178,2]
[420859054,1776648646488,-1329.95,0.00019178,2]
[420859056,1776648646497,-1427.36,0.00019178,2]
[420859058,1776648646506,-285.76741818,0.00019178,2]
[420859060,1776648646515,-500.0,0.00019178,2]
[420859062,1776648646524,-500.0,0.00019178,2]
[420859064,1776648646534,-503.49191651,0.00019178,2]
[420859066,1776648646543,-152.0,0.00019182,7]
[420859068,1776648646554,-152.0,0.00019182,7]
[420859070,1776648646563,-152.0,0.00019182,7]
[420859072,1776648646572,-152.0,0.00019182,7]
[420859074,1776648646582,-152.0,0.00019182,7]
[420859076,1776648646591,-1034.24517994,0.00019185,60]
[420859078,1776648646601,-178.41310034,0.00019191,120]
[420859080,1776648646610,-213.02894122,0.00019191,120]
[420859082,1776648646619,-582.63020829,0.00019191,120]
[420859085,1776648646629,-21892.733819,0.00019199,7]
[420859087,1776648646638,-1358.538424,0.00019199,2]
[420859089,1776648646648,-152.0,0.00019201,7]
[420859091,1776648646657,-152.0,0.00019201,7]
[420859093,1776648646668,-152.0,0.00019201,7]
[420859095,1776648646678,-152.0,0.00019201,7]
[420859097,1776648646687,-152.0,0.00019201,7]
[420859099,1776648646696,-152.0,0.00019201,7]
[420859101,1776648646706,-400.0,0.00019207,7]
[420859103,1776648646715,-400.0,0.00019207,7]
[420859105,1776648646725,-400.0,0.00019207,7]
[420859107,1776648646734,-400.0,0.00019207,7]
[420859109,1776648646744,-400.0,0.00019207,7]
[420859111,1776648646754,-400.0,0.00019207,7]
[420859113,1776648646763,-400.0,0.00019207,7]
[420859115,1776648646773,-400.0,0.00019207,7]
[420859117,1776648646782,-400.0,0.00019207,7]
[420859119,1776648646791,-400.0,0.00019207,7]
[420859120,1776648646800,-400.0,0.00019207,7]
[420859122,1776648646809,-400.0,0.00019207,7]
[420859124,1776648646819,-341.5,0.00019228,2]
[420859126,1776648646828,-155.0,0.00019274,2]
[420859128,1776648646837,-2312.83697232,0.00019314,2]
[420859130,1776648646846,-269.4931174,0.00019382,30]
[420859131,1776648646855,-483.4186999,0.00019382,30]
[420859133,1776648646865,-1034.24517994,0.00019394,120]
[420859135,1776648646875,-200.0,0.0001945,2]
[420859137,1776648646884,-200.0,0.0001945,4]
[420859140,1776648646894,-500.0,0.00019452,2]
[420859142,1776648646904,-309.19953883,0.00019452,2]
[420859144,1776648646914,-693.77,0.00019452,2]
[420859146,1776648646923,-500.0,0.00019452,2]
[420859148,1776648646932,-500.0,0.00019452,2]
[420859150,1776648646941,-500.0,0.00019452,2]
[420859152,1776648646950,-1248.91,0.00019452,2]
[420859154,1776648646960,-1260.27,0.00019452,2]
[420859155,1776648646970,-500.0,0.00019452,2]
[420859156,1776648646979,-1486.0,0.00019452,2]
[420859157,1776648646988,-500.0,0.00019452,2]
[420859158,1776648646998,-500.0,0.00019452,2]
[420859159,1776648647007,-1667.98,0.00019452,2]
[420859160,1776648647016,-1589.17,0.00019452,2]
[420859161,1776648647025,-500.0,0.00019452,2]
[420859162,1776648647035,-500.0,0.00019452,2]
[420859163,1776648647045,-500.0,0.00019452,2]
[420859164,1776648647058,-500.0,0.00019452,2]
[420859165,1776648647067,-500.0,0.00019452,2]
[420859166,1776648647078,-1394.53,0.00019452,2]
[420859167,1776648647087,-500.0,0.00019452,2]
[420859168,1776648647097,-500.0,0.00019452,2]
[420859169,1776648647107,-500.0,0.00019452,2]
[420859170,1776648647116,-500.0,0.00019452,2]
[420859171,1776648647126,-500.0,0.00019452,2]
[420859172,1776648647135,-500.0,0.00019452,2]
[420859173,1776648647145,-500.0,0.00019452,2]
[420859174,1776648647155,-500.0,0.00019452,2]
[420859175,1776648647165,-500.0,0.00019452,2]
[420859176,1776648647174,-500.0,0.00019452,2]
[420859177,1776648647183,-1158.51,0.00019452,2]
[420859178,1776648647192,-500.0,0.00019452,2]
[420859179,1776648647201,-280.35394786,0.00019452,2]
[420859180,1776648647211,-500.0,0.00019452,2]
[420859181,1776648647220,-500.0,0.00019452,2]
[420859182,1776648647230,-1117.7,0.00019452,2]
[420859183,1776648647239,-1980.07,0.00019452,2]
[420859184,1776648647248,-500.0,0.00019452,2]
[420859185,1776648647258,-626.84473412,0.00019452,2]
[420859186,1776648647267,-500.0,0.00019452,2]
[420859187,1776648647277,-963.78,0.00019452,2]
[420859188,1776648647286,-500.0,0.00019452,2]
[420859189,1776648647296,-664.48,0.00019452,2]
[420859190,1776648647304,-500.0,0.00019452,2]
[420859191,1776648647314,-500.0,0.00019452,2]
[420859192,1776648647323,-966.94,0.00019452,2]
[420859193,1776648647332,-500.0,0.00019452,2]
[420859194,1776648647341,-500.0,0.00019452,2]
[420859195,1776648647350,-389.62383348,0.00019452,2]
[420859196,1776648647360,-219.08146,0.00019452,2]
[420859197,1776648647369,-500.0,0.00019452,2]
[420859198,1776648647379,-500.0,0.00019452,2]
[420859199,1776648647388,-1280.92,0.00019452,2]
[420859200,1776648647397,-462.05621425,0.00019452,2]
[420859201,1776648647406,-677.26,0.00019452,2]